bitfinex/quotes_SOLUSD_20250216
["timestamp","ask_amount","ask_price","bid_price","bid_amount"]
[1739687415082,0.03,196.25,196.23,8.04415082]
[1739687415251,0.03,196.25,196.22,8.04415082]
[1739687415568,5.0958,196.24,196.18,8.04415082]
[1739687415749,8.04415082,196.23,196.17,88.82415082]
[1739687416163,13.13995082,196.24,196.18,8.04415082]
[1739687416349,13.13995082,196.24,196.17,88.82415082]
[1739687416675,8.04415082,196.23,196.17,80.78]
[1739687416839,8.04415082,196.22,196.15,8.04415082]
[1739687417162,8.04415082,196.21,196.14,8.04415082]
[1739687417369,8.04415082,196.2,196.13,8.04415082]
[1739687417572,8.04415082,196.19,196.12,8.04415082]
[1739687417770,12.47893236,196.19,196.13,13.41184853]
[1739687417946,12.47893236,196.2,196.14,12.47893236]
[1739687418147,12.47893236,196.19,196.12,12.47893236]
[1739687418368,12.47893236,196.17,196.11,12.47893236]
[1739687418567,12.47893236,196.17,196.1,12.47893236]
[1739687419648,5.0978,196.16,196.1,12.47893236]
[1739687420352,17.57673236,196.16,196.1,12.47893236]
[1739687420559,5.0978,196.16,196.1,12.47893236]
[1739687422864,5.0978,196.16,196.11,12.47893236]
[1739687423753,12.47893236,196.18,196.11,12.47893236]
[1739687423957,12.47893236,196.17,196.1,12.47893236]
[1739687425150,12.47893236,196.17,196.09,12.47893236]
[1739687425678,5.0978,196.16,196.09,12.47893236]
[1739687426185,5.0978,196.16,196.12,13.41184853]
[1739687426350,5.0978,196.16,196.12,25.89078089]
[1739687426876,5.0978,196.16,196.13,12.47893236]
[1739687427081,12.7415,196.21,196.15,12.47893236]
[1739687427082,5.097,196.19,196.15,12.47893236]
[1739687427898,17.57543236,196.21,196.14,12.47893236]
[1739687428481,12.47893236,196.18,196.11,12.47893236]
[1739687429365,12.47893236,196.18,196.14,0.063]
[1739687429682,12.47893236,196.17,196.14,0.063]
[1739687429870,12.47893236,196.16,196.14,0.063]
[1739687430584,12.47893236,196.15,196.14,0.063]
[1739687430802,17.57703236,196.15,196.14,0.063]
[1739687431765,5.0981,196.15,196.14,0.063]
[1739687434287,12.47893236,196.17,196.14,0.063]
[1739687435889,5.0978,196.16,196.14,0.063]
[1739687437971,12.47893236,196.15,196.14,0.063]
[1739687439198,12.47893236,196.15,196.06,25.89078089]
[1739687439399,12.47893236,196.12,196.06,25.89078089]
[1739687439704,12.47893236,196.14,196.07,12.47893236]
[1739687439885,5.0986,196.13,196.07,12.47893236]
[1739687440864,5.0986,196.13,196.08,12.47893236]
[1739687441071,17.8442,196.14,196.08,12.47893236]
[1739687441973,17.8442,196.14,196.07,12.47893236]
[1739687445394,17.8442,196.14,196.06,13.41184853]
[1739687446697,12.47893236,196.13,196.06,13.41184853]
[1739687447700,7.99203538,196.13,196.06,13.41184853]
[1739687447902,17.8461,196.12,196.06,13.41184853]
[1739687448802,17.8461,196.12,196.05,9.64333538]
[1739687449002,7.99203538,196.11,196.03,14.63003538]
[1739687449199,7.99203538,196.1,196.03,7.99203538]
[1739687449514,7.99203538,196.1,196.04,13.41184853]
[1739687449905,25.83813538,196.12,196.06,7.99203538]
[1739687450105,25.83813538,196.12,196.04,13.41184853]
[1739687450106,5.0989,196.12,196.07,7.99203538]
[1739687450484,17.8461,196.12,196.06,7.99203538]
[1739687451692,12.7472,196.12,196.06,12.48644817]
[1739687452801,17.8461,196.12,196.06,12.48644817]
[1739687454499,17.8461,196.12,196.05,12.48644817]
[1739687454903,17.8461,196.12,196.06,0.063]
[1739687455502,12.48644817,196.11,196.06,0.063]
[1739687455811,12.48644817,196.1,196.06,0.063]
[1739687456221,12.48644817,196.09,196.06,0.063]
[1739687456414,12.48644817,196.07,196.0,1.5261]
[1739687456716,12.48644817,196.06,196.0,1.5261]
[1739687457008,12.48644817,196.05,196.0,1.5261]
[1739687457310,12.48644817,196.05,195.99,0.063]
[1739687457497,12.48644817,196.05,195.99,12.54944817]
[1739687457696,5.1009,196.04,195.99,12.54944817]
[1739687459446,5.1009,196.04,196.0,12.48644817]
[1739687460839,1.0,196.13,195.99,13.47484853]
[1739687460840,5.0991,196.11,196.03,12.48644817]
[1739687461043,5.0991,196.11,196.07,12.48644817]
[1739687462033,5.0986,196.13,196.07,12.48644817]
[1739687462336,17.58504817,196.13,196.06,12.48644817]
[1739687463438,12.48644817,196.12,196.06,12.48644817]
[1739687463822,12.48644817,196.11,196.06,13.41184853]
[1739687464333,5.0994,196.1,196.06,13.41184853]
[1739687466032,12.48644817,196.08,196.01,12.48644817]
[1739687466339,12.48644817,196.08,196.01,25.8982967]
[1739687466541,12.48644817,196.07,196.01,25.8982967]
[1739687466746,12.48644817,196.08,196.02,13.41184853]
[1739687466930,12.48644817,196.07,196.02,13.41184853]
[1739687467944,5.1004,196.06,196.01,12.48644817]
[1739687468120,17.58684817,196.06,196.0,13.99944817]
[1739687468445,17.58684817,196.06,196.01,13.41184853]
[1739687469064,5.1004,196.06,196.01,13.41184853]
[1739687470151,5.1004,196.06,196.01,25.8982967]
[1739687470346,12.48644817,196.09,196.03,12.48644817]
[1739687470553,5.1001,196.08,196.03,12.48644817]
[1739687471039,17.58654817,196.08,196.02,12.48644817]
[1739687472539,5.1001,196.08,196.02,12.48644817]
[1739687473723,30.33634817,196.08,196.01,25.8982967]
[1739687474240,30.33634817,196.08,196.01,13.41184853]
[1739687474434,12.48644817,196.07,196.01,13.41184853]
[1739687475725,5.1004,196.06,196.01,13.41184853]
[1739687477247,17.58584817,196.1,196.02,12.48644817]
[1739687477550,17.58584817,196.1,196.03,12.48644817]
[1739687477744,17.58584817,196.1,196.02,12.48644817]
[1739687478061,12.48644817,196.09,196.02,12.48644817]
[1739687479145,5.0999,196.08,196.02,12.48644817]
[1739687480349,0.03,196.06,196.02,12.48644817]
[1739687480947,0.03,196.06,196.01,25.9612967]
[1739687486033,0.03,196.06,196.03,12.48644817]
[1739687486234,0.03,196.06,196.02,12.48644817]
[1739687486430,0.03,196.06,196.01,25.9612967]
[1739687487156,0.03,196.06,196.02,12.48644817]
[1739687487637,0.03,196.06,196.02,7.99473123]
[1739687488843,0.03,196.06,196.01,0.063]
[1739687490055,5.1304,196.06,196.01,0.063]
[1739687491456,13.12513123,196.06,196.01,0.063]
[1739687492670,5.1304,196.06,196.01,0.063]
[1739687492845,0.03,196.06,196.03,7.99473123]
[1739687493453,0.03,196.06,196.02,7.99473123]
[1739687494079,0.03,196.06,196.02,13.41184853]
[1739687496363,0.03,196.06,196.01,13.47484853]
[1739687497078,0.03,196.06,196.01,8.05773123]
[1739687497657,0.03,196.06,196.01,0.063]
[1739687499093,0.03,196.06,196.02,7.99473123]
[1739687501377,0.03,196.06,196.01,0.063]
[1739687502681,5.1304,196.06,196.01,0.063]
[1739687503068,7.99473123,196.05,196.01,0.063]
[1739687503576,7.99473123,196.04,196.01,0.063]
[1739687504082,7.99473123,196.02,196.01,0.063]
[1739687504757,13.09623123,196.02,196.01,0.063]
[1739687506873,7.99473123,196.03,196.01,0.063]
[1739687507060,7.99473123,196.04,196.01,0.063]
[1739687508056,7.99473123,196.03,196.01,0.063]
[1739687508256,7.99473123,196.04,196.01,0.063]
[1739687509172,5.1012,196.03,196.01,0.063]
[1739687511374,5.1009,196.04,196.01,0.063]
[1739687511577,7.99473123,196.03,196.01,0.063]
[1739687511756,5.1009,196.04,196.01,0.063]
[1739687511757,7.99473123,196.02,196.01,0.063]
[1739687513779,13.09623123,196.02,196.01,0.063]
[1739687521194,13.09623123,196.02,196.01,0.063]
[1739687523970,5.1015,196.02,196.01,0.063]
[1739687525866,13.09623123,196.02,196.01,0.063]
[1739687530908,82.1,196.03,196.01,0.063]
[1739687531192,5.1007,196.05,196.01,8.05773123]
[1739687531491,5.1304,196.06,196.01,0.063]
[1739687532072,0.03,196.06,196.01,8.05773123]
[1739687532279,0.03,196.06,196.02,7.99473123]
[1739687536189,0.03,196.06,196.01,0.063]
[1739687536776,0.03,196.06,196.01,8.05773123]
[1739687538997,0.03,196.06,196.02,7.99473123]
[1739687539582,0.03,196.06,196.01,8.05773123]
[1739687540477,0.03,196.06,196.02,7.99473123]
[1739687540678,0.03,196.06,196.01,8.05773123]
[1739687541889,0.03,196.06,196.02,13.41184853]
[1739687542695,0.03,196.06,196.02,21.40657976]
[1739687543899,0.03,196.06,196.02,13.41184853]
[1739687548207,0.03,196.06,196.02,7.99473123]
[1739687548383,0.03,196.06,196.03,13.41184853]
[1739687548784,0.03,196.06,196.01,8.05773123]
[1739687549004,0.03,196.06,196.02,13.41184853]
[1739687550303,0.03,196.06,196.01,0.063]
[1739687550502,7.99473123,196.04,196.01,0.063]
[1739687550816,7.99473123,196.02,196.01,0.063]
[1739687552528,13.09623123,196.02,196.01,0.063]
[1739687553907,5.1015,196.02,196.01,0.063]
[1739687554111,13.09593123,196.03,196.01,0.063]
[1739687555382,7.99473123,196.02,196.01,0.063]
[1739687557711,13.09623123,196.02,196.01,0.063]
[1739687563519,13.09623123,196.02,196.01,0.0001]
[1739687567124,13.09623123,196.02,195.99,0.063]
[1739687567125,28.99473123,196.0,195.99,0.0001]
[1739687567702,27.99473123,196.0,195.99,0.0001]
[1739687567904,7.99473123,196.0,195.99,0.0001]
[1739687569133,13.09673123,196.0,195.99,0.0001]
[1739687577834,82.1,196.01,195.99,0.0001]
[1739687578409,82.1,196.01,195.99,7.99483123]
[1739687578610,82.1,196.01,195.99,0.0001]
[1739687579737,5.1013,196.03,195.99,0.0001]
[1739687580738,7.99473123,196.01,195.99,0.0001]
[1739687580929,7.99473123,196.0,195.99,0.0001]
[1739687581127,91.09473123,196.0,195.99,0.0001]
[1739687581431,90.09473123,196.0,195.99,0.0001]
[1739687582441,13.09673123,196.0,195.99,0.0001]
[1739687585956,14.09673123,196.0,195.99,0.0001]
[1739687587858,20.0,195.97,195.96,0.0001]
[1739687588157,27.99473123,195.97,195.96,0.0001]
[1739687589626,27.99473123,195.97,195.94,0.0001]
[1739687589627,33.09753123,195.97,195.94,0.0001]
[1739687589827,7.99473123,195.95,195.94,0.0001]
[1739687591652,13.09803123,195.95,195.94,0.0001]
[1739687594253,82.1,195.96,195.94,0.0001]
[1739687594660,87.2031,195.96,195.94,0.0001]
[1739687597431,95.19783123,195.96,195.94,0.0001]
[1739687601154,7.99473123,195.95,195.94,0.0001]
[1739687601355,13.09803123,195.95,195.94,0.0001]
[1739687603563,5.1033,195.95,195.94,0.0001]
[1739687603769,90.09473123,195.96,195.94,0.0001]
[1739687603953,87.2031,195.96,195.94,0.0001]
[1739687606660,95.19783123,195.96,195.94,0.0001]
[1739687607041,7.99473123,195.95,195.94,0.0001]
[1739687608664,13.09803123,195.95,195.94,0.0001]
[1739687611365,5.1033,195.95,195.94,0.0001]
[1739687616654,82.13,195.96,195.94,0.0001]
[1739687618050,87.233,195.96,195.94,0.0001]
[1739687621262,5.133,195.96,195.94,0.0001]
[1739687625881,0.03,195.96,195.94,0.0001]
[1739687631277,0.03,195.96,195.94,7.99483123]
[1739687631983,0.03,195.96,195.95,7.99473123]
[1739687632485,0.03,195.96,195.94,7.99483123]
[1739687636194,0.03,195.96,195.95,21.40657976]
[1739687638273,0.03,195.96,195.95,26.50987976]
[1739687640972,0.03,195.96,195.95,21.40657976]
[1739687645397,0.03,195.96,195.95,26.50987976]
[1739687645584,0.03,195.96,195.95,27.27509265]
[1739687645786,0.03,195.96,195.95,26.50987976]
[1739687647998,0.03,195.96,195.95,107.80987976]
[1739687648605,0.03,196.01,195.95,107.80987976]
[1739687648903,0.03,196.01,196.0,7.99473123]
[1739687652312,0.03,196.01,196.0,21.40657976]
[1739687653787,0.03,196.01,196.0,26.50857976]
[1739687659915,0.03,196.01,196.0,107.80857976]
[1739687661821,0.03,196.01,196.0,102.70657976]
[1739687663316,0.03,196.01,196.0,107.80857976]
[1739687663689,0.03,196.01,196.0,102.70657976]
[1739687666209,0.03,196.01,196.0,89.29473123]
[1739687666610,0.03,196.01,196.0,102.70657976]
[1739687671519,7.99473123,196.09,196.0,102.70657976]
[1739687671701,7.99473123,196.09,196.03,7.99473123]
[1739687672625,5.0999,196.08,196.03,7.99473123]
[1739687673926,5.0996,196.09,196.03,7.99473123]
[1739687674708,13.09433123,196.09,196.03,7.99473123]
[1739687674911,7.99473123,196.07,196.0,7.99473123]
[1739687675627,7.99473123,196.06,196.0,7.99473123]
[1739687675827,7.99473123,196.04,195.97,224.79473123]
[1739687676012,7.99473123,196.04,195.97,7.99473123]
[1739687676401,7.99473123,196.03,195.97,7.99473123]
[1739687676826,7.99473123,196.04,195.97,7.99473123]
[1739687677633,7.99473123,196.04,195.98,7.99473123]
[1739687677931,5.1012,196.03,195.98,7.99473123]
[1739687678134,5.1012,196.03,195.99,7.99473123]
[1739687678715,5.1012,196.03,196.0,0.063]
[1739687679115,5.1007,196.05,196.0,0.063]
[1739687680307,5.1007,196.05,196.0,8.05773123]
[1739687680528,5.1007,196.05,196.02,7.99473123]
[1739687680728,5.0999,196.08,196.03,7.99473123]
[1739687681430,13.09463123,196.08,196.01,7.99473123]
[1739687681629,13.09463123,196.08,196.0,8.05773123]
[1739687681630,7.99473123,196.07,196.0,8.05773123]
[1739687681808,17.8497,196.08,196.03,7.99473123]
[1739687682125,25.84443123,196.08,196.01,7.99473123]
[1739687684721,7.99473123,196.07,196.01,7.99473123]
[1739687684924,7.99473123,196.07,196.0,8.05773123]
[1739687686533,5.1004,196.06,196.0,8.05773123]
[1739687687532,13.09513123,196.06,196.0,8.05773123]
[1739687687716,7.99473123,196.04,196.0,0.063]
[1739687688322,17.8515,196.06,196.0,0.063]
[1739687688323,7.99473123,196.03,196.0,0.063]
[1739687688913,7.99473123,196.02,196.0,0.063]
[1739687689627,5.1017,196.01,196.0,0.063]
[1739687690228,13.09643123,196.01,196.0,0.063]
[1739687691230,5.1017,196.01,196.0,0.063]
[1739687694643,96.21773123,196.04,196.0,0.063]
[1739687694823,13.09593123,196.03,196.0,0.063]
[1739687696123,5.1012,196.03,196.0,0.063]
[1739687696841,5.1012,196.03,196.0,8.05773123]
[1739687696842,20.0,196.03,196.0,8.05773123]
[1739687698140,5.1015,196.02,196.0,8.05773123]
[1739687698344,5.1015,196.02,196.0,0.063]
[1739687699440,5.1015,196.02,196.0,8.05773123]
[1739687699650,5.1015,196.02,196.01,7.99473123]
[1739687700357,12.7811,196.06,196.01,7.99473123]
[1739687700563,12.7811,196.06,196.02,7.99473123]
[1739687700746,0.03,196.06,196.03,7.99473123]
[1739687701250,0.03,196.06,196.04,7.99473123]
[1739687701547,0.03,196.06,196.05,7.99473123]
[1739687702426,0.03,196.06,196.04,7.99473123]
[1739687702933,0.03,196.06,196.03,7.99473123]
[1739687708526,0.03,196.06,196.0,0.063]
[1739687708527,0.03,196.06,196.01,7.99473123]
[1739687708734,7.99473123,196.05,196.0,0.063]
[1739687710451,5.1009,196.04,196.0,0.063]
[1739687711331,5.1009,196.04,196.0,8.05773123]
[1739687711752,5.1009,196.04,196.02,7.99473123]
[1739687712247,5.1306,196.06,196.03,7.99473123]
[1739687712830,5.1306,196.06,196.04,7.99473123]
[1739687713059,0.03,196.06,196.05,7.99473123]
[1739687716952,0.03,196.06,196.04,7.99473123]
[1739687718761,0.03,196.06,196.02,7.99473123]
[1739687718941,0.03,196.06,196.01,8.05773123]
[1739687719854,17.8815,196.06,196.01,8.05773123]
[1739687720163,17.8815,196.06,196.01,0.063]
[1739687720164,25.87623123,196.06,196.01,0.063]
[1739687720460,5.1304,196.06,196.01,8.05773123]
[1739687721562,5.1304,196.06,196.02,7.99473123]
[1739687721857,5.1304,196.06,196.01,0.063]
[1739687721858,0.03,196.06,196.01,8.05773123]
[1739687726043,0.03,196.06,196.02,7.99473123]
[1739687726243,0.03,196.06,196.04,7.99473123]
[1739687726941,0.03,196.06,196.03,7.99473123]
[1739687731271,0.03,196.06,196.02,7.99473123]
[1739687732082,0.03,196.06,196.01,8.05773123]
[1739687732780,0.03,196.06,196.02,7.99473123]
[1739687736871,0.03,196.06,196.01,8.05773123]
[1739687737064,7.99473123,196.04,196.01,0.063]
[1739687737370,7.99473123,196.03,196.01,0.063]
[1739687738573,5.1015,196.02,196.01,0.063]
[1739687744285,5.1012,196.03,196.01,0.063]
[1739687747179,7.99473123,196.05,196.01,0.063]
[1739687747386,5.1009,196.04,196.01,0.063]
[1739687747890,7.99473123,196.02,196.01,0.063]
[1739687749776,1.0,196.01,196.0,0.0001]
[1739687750083,8.99473123,196.01,196.0,0.0001]
[1739687751385,14.09643123,196.01,196.0,0.0001]
[1739687751963,15.09643123,196.01,196.0,0.0001]
[1739687752395,16.72773123,196.01,196.0,0.0001]
[1739687753262,30.13957976,196.01,196.0,0.0001]
[1739687761393,2.0,195.99,195.95,0.0001]
[1739687761579,2.0,195.99,195.92,0.063]
[1739687761580,8.99473123,195.96,195.92,0.0001]
[1739687761779,7.99473123,195.93,195.92,0.0001]
[1739687761983,27.99473123,195.93,195.92,0.0001]
[1739687763100,33.09853123,195.93,195.92,0.0001]
[1739687765382,25.1038,195.93,195.92,0.0001]
[1739687765898,33.09853123,195.93,195.92,0.0001]
[1739687774498,33.09853123,195.93,195.92,0.0001]
[1739687778586,5.1038,195.93,195.92,0.0001]
[1739687779185,13.09853123,195.93,195.92,0.0001]
[1739687792102,14.09853123,195.93,195.92,0.0001]
[1739687792827,28.51037976,195.93,195.92,0.0001]
[1739687793426,20.0,195.9,195.87,0.0001]
[1739687793623,7.99473123,195.88,195.87,0.0001]
[1739687793999,13.09983123,195.88,195.87,0.0001]
[1739687796717,5.1051,195.88,195.87,0.0001]
[1739687800217,13.09983123,195.88,195.87,0.0001]
[1739687810951,13.12983123,195.88,195.87,0.0001]
[1739687811743,25.89273123,195.88,195.83,0.063]
[1739687811963,7.99473123,195.84,195.83,0.0001]
[1739687812844,13.10093123,195.84,195.83,0.0001]
[1739687816064,13.10093123,195.84,195.82,0.0001]
[1739687816238,7.99473123,195.83,195.82,0.0001]
[1739687816635,90.09473123,195.83,195.82,0.0001]
[1739687817064,5.1056,195.86,195.82,7.99483123]
[1739687817734,5.1056,195.86,195.82,0.0001]
[1739687818156,90.09473123,195.85,195.82,0.0001]
[1739687818369,7.99473123,195.83,195.82,0.0001]
[1739687818664,7.99473123,195.84,195.82,0.0001]
[1739687819053,90.09473123,195.85,195.82,0.0001]
[1739687820031,5.1062,195.84,195.82,0.0001]
[1739687823372,82.1,195.83,195.82,0.0001]
[1739687823673,87.2064,195.83,195.82,0.0001]
[1739687824165,95.20113123,195.83,195.82,0.0001]
[1739687824856,13.10113123,195.83,195.81,0.0001]
[1739687825079,20.0,195.8,195.79,0.063]
[1739687825370,27.99473123,195.8,195.79,0.063]
[1739687825567,27.99473123,195.8,195.78,0.063]
[1739687825746,7.99473123,195.79,195.78,0.063]
[1739687827766,13.10223123,195.79,195.78,0.063]
[1739687832344,13.10223123,195.79,195.78,0.0001]
[1739687832554,20.0,195.76,195.74,0.063]
[1739687832857,7.99473123,195.75,195.74,0.063]
[1739687833058,13.10323123,195.75,195.74,0.063]
[1739687833959,95.20323123,195.75,195.74,0.063]
[1739687834154,95.20323123,195.75,195.7,1.2945]
[1739687834455,7.99473123,195.73,195.7,1.2945]
[1739687834660,7.99473123,195.73,195.68,1.6346]
[1739687836047,5.1093,195.72,195.68,1.6346]
[1739687836850,5.1093,195.72,195.68,9.62933123]
[1739687837856,5.1093,195.72,195.69,7.99473123]
[1739687838170,5.1088,195.74,195.69,7.99473123]
[1739687838372,13.10353123,195.74,195.68,9.62933123]
[1739687838872,5.1088,195.74,195.68,9.62933123]
[1739687839047,82.1,195.75,195.7,7.99473123]
[1739687839350,87.2085,195.75,195.71,7.99473123]
[1739687840361,82.1,195.75,195.71,7.99473123]
[1739687841375,87.2086,195.75,195.71,7.99473123]
[1739687842572,87.2086,195.75,195.7,7.99473123]
[1739687844270,5.1086,195.75,195.7,7.99473123]
[1739687845254,5.1086,195.75,195.7,8.05773123]
[1739687846877,7.99473123,195.73,195.7,0.063]
[1739687847778,5.1093,195.72,195.7,0.063]
[1739687849765,5.109,195.73,195.7,0.063]
[1739687850263,5.1085,195.75,195.7,8.05773123]
[1739687850763,5.1085,195.75,195.7,0.063]
[1739687850963,13.10323123,195.75,195.7,0.063]
[1739687852677,7.99473123,195.73,195.7,0.063]
[1739687852985,13.10323123,195.75,195.7,0.063]
[1739687853172,5.1085,195.75,195.7,0.063]
[1739687853374,5.1085,195.75,195.7,8.05773123]
[1739687853780,5.1085,195.75,195.71,7.99473123]
[1739687856970,5.1085,195.75,195.7,8.05773123]
[1739687857762,5.1385,195.75,195.7,8.05773123]
[1739687862893,5.1385,195.75,195.71,7.99473123]
[1739687863783,5.1385,195.75,195.72,7.99473123]
[1739687865204,0.03,195.75,195.73,7.99473123]
[1739687865681,0.03,195.75,195.74,7.99473123]
[1739687865884,0.03,195.75,195.72,13.41184853]
[1739687866083,0.03,195.75,195.71,7.99473123]
[1739687868771,0.03,195.75,195.72,7.99473123]
[1739687871495,0.03,195.75,195.71,7.99473123]
[1739687880701,0.03,195.75,195.72,7.99473123]
[1739687881404,0.03,195.75,195.73,7.99473123]
[1739687884087,0.03,195.75,195.74,7.99473123]
[1739687884903,0.03,195.75,195.73,7.99473123]
[1739687885600,0.03,195.75,195.72,7.99473123]
[1739687888907,0.03,195.75,195.71,21.40657976]
[1739687889614,0.03,195.75,195.71,7.99473123]
[1739687889910,0.03,195.75,195.7,8.05773123]
[1739687890698,0.03,195.75,195.71,7.99473123]
[1739687891199,0.03,195.75,195.72,7.99473123]
[1739687893315,0.03,195.75,195.73,7.99473123]
[1739687893703,0.03,195.75,195.74,7.99473123]
[1739687894300,0.03,195.75,195.73,7.99473123]
[1739687899315,0.03,195.75,195.73,13.41184853]
[1739687900915,0.03,195.75,195.73,7.99473123]
[1739687901105,0.03,195.75,195.74,7.99473123]
[1739687901405,0.03,195.75,195.73,7.99473123]
[1739687901595,0.03,195.75,195.74,7.99473123]
[1739687901795,0.03,195.75,195.73,7.99473123]
[1739687903398,0.03,195.75,195.74,7.99473123]
[1739687903597,0.03,195.75,195.74,21.40657976]
[1739687904520,0.03,195.75,195.74,24.77504702]
[1739687905235,0.03,195.75,195.74,29.88384702]
[1739687905597,0.03,195.75,195.74,33.40661437]
[1739687905800,0.03,195.84,195.75,13.41184853]
[1739687906094,0.03,195.84,195.79,7.99473123]
[1739687906503,0.03,195.84,195.78,7.99473123]
[1739687907407,0.03,195.84,195.78,6.88473123]
[1739687907608,0.03,195.84,195.79,7.99473123]
[1739687910715,0.03,195.84,195.8,7.99473123]
[1739687911117,0.03,195.84,195.79,7.99473123]
[1739687912219,0.03,195.84,195.8,7.99473123]
[1739687912715,0.03,195.84,195.81,7.99473123]
[1739687914241,0.03,195.84,195.82,7.99473123]
[1739687914646,0.03,195.84,195.81,7.99473123]
[1739687915749,0.03,195.84,195.8,7.99473123]
[1739687917152,0.03,195.84,195.81,7.99473123]
[1739687917742,0.03,195.84,195.8,7.99473123]
[1739687918836,0.03,195.84,195.81,7.99473123]
[1739687919844,0.03,195.84,195.8,7.99473123]
[1739687920847,0.03,195.84,195.81,7.99473123]
[1739687925837,0.03,195.84,195.83,7.99473123]
[1739687926037,0.03,195.84,195.83,21.40657976]
[1739687928650,0.03,195.84,195.83,26.51297976]
[1739687929347,0.03,195.84,195.83,21.40657976]
[1739687933156,0.03,195.84,195.83,26.51297976]
[1739687939366,0.03,195.88,195.87,21.0]
[1739687939547,0.03,195.88,195.87,125.47208242]
[1739687939751,0.03,195.88,195.87,124.70657976]
[1739687940261,0.03,195.88,195.87,122.70657976]
[1739687940465,0.03,195.88,195.87,123.70657976]
[1739687940661,0.03,195.88,195.87,122.70657976]
[1739687941352,0.03,195.88,195.87,127.81197976]
[1739687941737,0.03,195.88,195.87,128.81197976]
[1739687942366,0.03,195.88,195.87,129.81197976]
[1739687942677,0.03,195.92,195.91,34.41184853]
[1739687942836,0.03,195.92,195.91,124.47187615]
[1739687943036,0.03,195.92,195.91,123.70657976]
[1739687943475,0.03,195.92,195.91,128.81087976]
[1739687944744,0.03,195.94,195.91,128.81087976]
[1739687944745,0.03,195.94,195.93,2.0]
[1739687945072,0.03,195.95,195.94,43.40657976]
[1739687945742,0.03,195.95,195.94,73.40657976]
[1739687946145,0.03,195.95,195.94,74.17167238]
[1739687946469,0.03,195.95,195.94,43.17167238]
[1739687946673,0.03,195.95,195.94,42.40657976]
[1739687946874,0.03,195.95,195.94,46.51017976]
[1739687947445,0.03,195.95,195.94,48.51017976]
[1739687947853,0.03,195.95,195.94,46.51017976]
[1739687948745,0.03,195.95,195.94,47.51017976]
[1739687949069,0.03,195.95,195.94,46.51017976]
[1739687949270,0.03,195.95,195.94,47.51017976]
[1739687949448,0.03,195.95,195.94,49.27535298]
[1739687949863,0.03,195.95,195.94,47.27535298]
[1739687950065,0.03,195.95,195.94,46.51017976]
[1739687950745,0.03,195.95,195.94,48.27536411]
[1739687951147,0.03,195.95,195.94,129.57536411]
[1739687951376,0.03,195.95,195.94,128.81017976]
[1739687955384,0.03,195.95,195.94,129.81017976]
[1739687959076,0.03,195.95,195.94,128.81017976]
[1739687959372,0.03,196.03,196.0,7.99473123]
[1739687968084,0.03,196.03,195.99,7.99473123]
[1739687973371,0.03,196.03,196.0,7.99473123]
[1739687975588,0.03,196.03,195.99,7.99473123]
[1739687977588,0.03,196.03,196.0,7.99473123]
[1739687977768,0.03,196.03,196.01,7.99473123]
[1739687978796,0.03,196.03,196.0,7.99473123]
[1739687980097,0.03,196.03,196.0,13.41184853]
[1739687983186,0.03,196.03,196.0,7.99473123]
[1739687984507,0.03,196.03,195.97,7.99473123]
[1739687984706,7.99473123,196.02,195.95,7.99473123]
[1739687984901,90.09473123,196.02,195.95,7.99473123]
[1739687985396,5.1017,196.01,195.95,7.99473123]
[1739687987404,5.1017,196.01,195.96,7.99473123]
[1739687988305,82.1,196.02,195.97,7.99473123]
[1739687988510,87.2015,196.02,195.98,7.99473123]
[1739687989698,87.2015,196.02,195.97,7.99473123]
[1739687993218,95.19623123,196.02,195.96,7.99473123]
[1739687993695,87.2015,196.02,195.97,7.99473123]
[1739687995323,87.2315,196.02,195.97,7.99473123]
[1739687995622,7.99473123,195.99,195.95,0.063]
[1739687995795,7.99473123,196.0,195.95,0.063]